bitfinex/quotes_BTCUSD_20250713
["timestamp","ask_amount","ask_price","bid_price","bid_amount"]
[1752403098121,0.003,117630.0,117620.0,0.33656]
[1752403131173,0.0192,117630.0,117620.0,0.33354]
[1752403140488,0.0368,117630.0,117620.0,0.33354]
[1752403152506,0.003,117630.0,117620.0,0.33656]
[1752403157970,0.003,117630.0,117600.0,0.30931567]
[1752403158178,0.03841,117630.0,117620.0,0.20377]
[1752403158476,0.03841,117630.0,117620.0,9e-05]
[1752403158990,0.03741,117630.0,117620.0,9e-05]
[1752403159193,0.03741,117630.0,117620.0,0.12793]
[1752403161580,0.03841,117630.0,117620.0,0.12793]
[1752403162582,0.03841,117630.0,117620.0,0.33161]
[1752403170829,0.04039,117630.0,117620.0,0.33161]
[1752403191340,0.04039,117630.0,117620.0,0.33152]
[1752403192584,0.04039,117630.0,117620.0,0.20368]
[1752403192717,0.04039,117630.0,117620.0,0.33152]
[1752403243457,0.04039,117630.0,117620.0,0.20368]
[1752403244661,0.04039,117630.0,117620.0,0.33148]
[1752403266954,0.04039,117630.0,117620.0,0.33157]
[1752403271154,0.04039,117630.0,117620.0,0.20368]
[1752403271423,0.04039,117630.0,117620.0,0.33148]
[1752403303789,0.04039,117630.0,117620.0,0.33157]
[1752403304029,0.03841,117630.0,117620.0,0.33157]
[1752403353977,0.04636734,117630.0,117620.0,0.33157]
[1752403355707,0.03841,117630.0,117620.0,0.33157]
[1752403355908,0.04636734,117630.0,117620.0,0.33157]
[1752403356855,0.04636734,117630.0,117620.0,0.67157]
[1752403364262,0.03841,117630.0,117620.0,0.67157]
[1752403364494,0.04636737,117630.0,117620.0,0.67157]
[1752403372880,0.03841,117630.0,117620.0,0.67157]
[1752403373079,0.04636736,117630.0,117620.0,0.67157]
[1752403381070,0.03841,117630.0,117620.0,0.67157]
[1752403381246,0.04636706,117630.0,117620.0,0.67157]
[1752403381766,0.04636705,117630.0,117620.0,0.67157]
[1752403383522,0.04636666,117630.0,117620.0,0.67157]
[1752403386311,0.04636662,117630.0,117620.0,0.67157]
[1752403389074,0.03841,117630.0,117620.0,0.67157]
[1752403389202,0.04636665,117630.0,117620.0,0.67157]
[1752403391695,0.04842665,117630.0,117620.0,0.67157]
[1752403394741,0.04047,117630.0,117620.0,0.67157]
[1752403394895,0.0484267,117630.0,117620.0,0.67157]
[1752403397900,0.04842671,117630.0,117620.0,0.67157]
[1752403404485,0.04842684,117630.0,117620.0,0.67157]
[1752403406592,0.04842688,117630.0,117620.0,0.67157]
[1752403409200,0.04842692,117630.0,117620.0,0.67157]
[1752403412023,0.04842694,117630.0,117620.0,0.67157]
[1752403414871,0.04047,117630.0,117620.0,0.67157]
[1752403415087,0.04842707,117630.0,117620.0,0.67157]
[1752403417752,0.04047,117630.0,117620.0,0.67157]
[1752403418083,0.04842713,117630.0,117620.0,0.67157]
[1752403420324,0.04047,117630.0,117620.0,0.67157]
[1752403425512,0.04842724,117630.0,117620.0,0.67157]
[1752403428456,0.04842738,117630.0,117620.0,0.67157]
[1752403429013,0.04842737,117630.0,117620.0,0.67157]
[1752403436945,0.04047,117630.0,117620.0,0.67157]
[1752403437150,0.0484273,117630.0,117620.0,0.67157]
[1752403444731,0.0484272,117630.0,117620.0,0.67157]
[1752403445128,0.04842711,117630.0,117620.0,0.67157]
[1752403453093,0.04047,117630.0,117620.0,0.67157]
[1752403453267,0.04842686,117630.0,117620.0,0.67157]
[1752403459226,0.0484269,117630.0,117620.0,0.67157]
[1752403462457,0.04047,117630.0,117620.0,0.67157]
[1752403462657,0.04842694,117630.0,117620.0,0.67157]
[1752403468062,0.04842678,117630.0,117620.0,0.67157]
[1752403471084,0.04842689,117630.0,117620.0,0.67157]
[1752403471487,0.04842685,117630.0,117620.0,0.67157]
[1752403479662,0.04842665,117630.0,117620.0,0.67157]
[1752403480473,0.04842667,117630.0,117620.0,0.67157]
[1752403488150,0.04842663,117630.0,117620.0,0.67157]
[1752403488810,0.04842669,117630.0,117620.0,0.67157]
[1752403491021,0.04047,117630.0,117620.0,0.67157]
[1752403491178,0.04842669,117630.0,117620.0,0.67157]
[1752403496659,0.04047,117630.0,117620.0,0.67157]
[1752403496868,0.04842671,117630.0,117620.0,0.67157]
[1752403497221,0.04842672,117630.0,117620.0,0.67157]
[1752403499554,0.04842675,117630.0,117620.0,0.67157]
[1752403504270,0.04047,117630.0,117620.0,0.67157]
[1752403504488,0.04842683,117630.0,117620.0,0.67157]
[1752403504963,0.04047,117630.0,117620.0,0.67157]
[1752403505181,0.04842688,117630.0,117620.0,0.67157]
[1752403511717,0.04842688,117630.0,117620.0,0.67149]
[1752403512538,0.04842688,117630.0,117620.0,0.54377]
[1752403512894,0.04047,117630.0,117620.0,0.67149]
[1752403513104,0.04842693,117630.0,117620.0,0.67149]
[1752403515805,0.04842682,117630.0,117620.0,0.67149]
[1752403517045,0.04047,117630.0,117620.0,0.67149]
[1752403517265,0.04842675,117630.0,117620.0,0.67149]
[1752403521499,0.04047,117630.0,117620.0,0.67149]
[1752403521718,0.0484267,117630.0,117620.0,0.67149]
[1752403528446,0.04352092,117630.0,117620.0,0.67149]
[1752403530083,0.03556422,117630.0,117620.0,0.67149]
[1752403530377,0.04352084,117630.0,117620.0,0.67149]
[1752403535808,0.04352088,117630.0,117620.0,0.67149]
[1752403538561,0.03556422,117630.0,117620.0,0.67149]
[1752403538753,0.04352106,117630.0,117620.0,0.67149]
[1752403546167,0.04352106,117630.0,117620.0,0.67249]
[1752403547070,0.03556422,117630.0,117620.0,0.67249]
[1752403547195,0.04352119,117630.0,117620.0,0.67249]
[1752403555670,0.04352141,117630.0,117620.0,0.67249]
[1752403556322,0.04352145,117630.0,117620.0,0.67249]
[1752403563177,0.03556422,117630.0,117620.0,0.67249]
[1752403563386,0.04352143,117630.0,117620.0,0.67249]
[1752403566332,0.04352144,117630.0,117620.0,0.67249]
[1752403571761,0.03556422,117630.0,117620.0,0.67249]
[1752403571966,0.04352145,117630.0,117620.0,0.67249]
[1752403573267,0.04352145,117630.0,117620.0,0.67245]
[1752403577048,0.04352145,117630.0,117620.0,0.33236]
[1752403577471,0.04352148,117630.0,117620.0,0.33236]
[1752403580423,0.04352147,117630.0,117620.0,0.33236]
[1752403588886,0.03556422,117630.0,117620.0,0.33236]
[1752403589101,0.04352145,117630.0,117620.0,0.33236]
[1752403594679,0.04352144,117630.0,117620.0,0.33236]
[1752403597338,0.03556422,117630.0,117620.0,0.33236]
[1752403597531,0.04352146,117630.0,117620.0,0.33236]
[1752403606171,0.04352135,117630.0,117620.0,0.33236]
[1752403613033,0.04352133,117630.0,117620.0,0.33236]
[1752403614558,0.03556422,117630.0,117620.0,0.67236]
[1752403614760,0.04352133,117630.0,117620.0,0.67236]
[1752403622287,0.04352107,117630.0,117620.0,0.67236]
[1752403622922,0.04352106,117630.0,117620.0,0.67236]
[1752403630876,0.03556422,117630.0,117620.0,0.67236]
[1752403631100,0.04352095,117630.0,117620.0,0.67236]
[1752403633626,0.04351949,117630.0,117620.0,0.67236]
[1752403639163,0.03556422,117630.0,117620.0,0.67236]
[1752403639391,0.04351671,117630.0,117620.0,0.67236]
[1752403640739,0.04351671,117630.0,117620.0,0.54468]
[1752403640948,0.12894664,117630.0,117620.0,0.20468]
[1752403641167,0.14348749,117630.0,117620.0,0.33232]
[1752403642084,0.14348749,117630.0,117620.0,0.20468]
[1752403642297,0.14348749,117630.0,117620.0,0.33236]
[1752403642723,0.14348749,117630.0,117620.0,0.3326]
[1752403647749,0.14346984,117630.0,117620.0,0.3326]
[1752403653159,0.135535,117630.0,117620.0,0.3326]
[1752403653359,0.14346662,117630.0,117620.0,0.3326]
[1752403656221,0.14346572,117630.0,117620.0,0.3326]
[1752403659239,0.14346577,117630.0,117620.0,0.3326]
[1752403664606,0.135535,117630.0,117620.0,0.3326]
[1752403664816,0.14346916,117630.0,117620.0,0.3326]
[1752403667696,0.14347469,117630.0,117620.0,0.3326]
[1752403673264,0.135535,117630.0,117620.0,0.3326]
[1752403673484,0.14348768,117630.0,117620.0,0.3326]
[1752403680944,0.15783645,117630.0,117620.0,0.20468]
[1752403681146,0.15783645,117630.0,117620.0,0.33268]
[1752403681385,0.15783638,117630.0,117620.0,0.33268]
[1752403681783,0.15783608,117630.0,117620.0,0.33268]
[1752403682315,0.14348731,117630.0,117620.0,0.33268]
[1752403682658,0.14248731,117630.0,117620.0,0.33268]
[1752403683083,0.14548731,117630.0,117620.0,0.33268]
[1752403683900,0.14548686,117630.0,117620.0,0.33268]
[1752403689324,0.137535,117630.0,117620.0,0.33268]
[1752403689535,0.14548407,117630.0,117620.0,0.33268]
[1752403689978,0.20938814,117630.0,117620.0,0.33268]
[1752403690180,0.14548407,117630.0,117620.0,0.33268]
[1752403693666,0.14548407,117630.0,117620.0,0.3328]
[1752403693873,0.14548407,117630.0,117610.0,0.20372]
[1752403693874,0.04544085,117620.0,117610.0,0.20372]
[1752403694001,0.13881985,117620.0,117610.0,0.20372]
[1752403694224,0.14394985,117620.0,117610.0,0.20372]
[1752403694649,0.56120719,117620.0,117610.0,0.20372]
[1752403694851,0.56120719,117620.0,117610.0,0.33184]
[1752403695019,0.56320356,117620.0,117610.0,0.33184]
[1752403695456,0.56720356,117620.0,117610.0,0.33184]
[1752403697621,0.58714566,117620.0,117610.0,0.33184]
[1752403697858,0.56720356,117620.0,117610.0,0.33184]
[1752403698104,0.56720356,117620.0,117610.0,0.20372]
[1752403698330,0.56719984,117620.0,117610.0,0.33192]
[1752403699530,0.56719837,117620.0,117610.0,0.33192]
[1752403702678,0.62666701,117620.0,117610.0,0.33192]
[1752403703103,0.56719837,117620.0,117610.0,0.33192]
[1752403706904,0.55925812,117620.0,117610.0,0.33192]
[1752403707111,0.56719652,117620.0,117610.0,0.33192]
[1752403715478,0.55925812,117620.0,117610.0,0.33192]
[1752403715700,0.56719966,117620.0,117610.0,0.33192]
[1752403716624,0.56719966,117620.0,117610.0,0.20372]
[1752403716842,0.56719966,117620.0,117610.0,0.332]
[1752403720665,0.56206966,117620.0,117610.0,0.332]
[1752403720891,0.13116966,117620.0,117610.0,0.363]
[1752403721085,0.13117337,117620.0,117610.0,0.363]
[1752403722666,0.13117337,117620.0,117610.0,0.3472]
[1752403723696,0.15183337,117620.0,117610.0,0.332]
[1752403723884,0.14388812,117620.0,117610.0,0.332]
[1752403724083,0.13653765,117620.0,117610.0,0.332]
[1752403724288,0.13437765,117620.0,117610.0,0.332]
[1752403724499,0.13437719,117620.0,117610.0,0.332]
[1752403727009,0.13437653,117620.0,117610.0,0.332]
[1752403730926,0.13437653,117620.0,117610.0,0.3642]
[1752403730927,0.09142993,117620.0,117610.0,0.3642]
[1752403731957,0.08942993,117620.0,117610.0,0.3642]
[1752403732208,0.09042993,117620.0,117610.0,0.3642]
[1752403732614,0.08642993,117620.0,117610.0,0.3642]
[1752403732939,0.08842993,117620.0,117610.0,0.3642]
[1752403733510,0.09637554,117620.0,117610.0,0.3642]
[1752403734024,0.08842993,117620.0,117610.0,0.3642]
[1752403734225,0.09637554,117620.0,117610.0,0.3642]
[1752403734553,0.09637372,117620.0,117610.0,0.37966765]
[1752403741711,0.09636836,117620.0,117610.0,0.37966765]
[1752403742426,0.09636802,117620.0,117610.0,0.37966765]
[1752403743710,0.01093809,117620.0,117610.0,0.37966765]
[1752403744472,0.01093711,117620.0,117610.0,0.37966765]
[1752403746388,0.00793711,117620.0,117610.0,0.37966765]
[1752403746808,0.00893711,117620.0,117610.0,0.37966765]
[1752403750169,0.00893756,117620.0,117610.0,0.37966765]
[1752403752987,0.00893747,117620.0,117610.0,0.37966765]
[1752403755856,0.00893777,117620.0,117610.0,0.37966765]
[1752403758729,0.00894014,117620.0,117610.0,0.37966765]
[1752403759067,0.001,117620.0,117610.0,0.37966765]
[1752403760343,0.00894285,117620.0,117610.0,0.37966765]
[1752403762806,0.00894536,117620.0,117610.0,0.37966765]
[1752403763428,0.00894536,117620.0,117610.0,0.71966765]
[1752403768405,0.001,117620.0,117610.0,0.71966765]
[1752403768636,0.00894239,117620.0,117610.0,0.71966765]
[1752403771332,0.008941,117620.0,117610.0,0.71966765]
[1752403774113,0.001,117620.0,117610.0,0.71966765]
[1752403774238,0.0089413,117620.0,117610.0,0.71966765]
[1752403777067,0.00894107,117620.0,117610.0,0.71966765]
[1752403777547,0.0089411,117620.0,117610.0,0.71966765]
[1752403783559,0.0089411,117620.0,117610.0,0.70366765]
[1752403783780,0.001,117620.0,117610.0,0.80419758]
[1752403785327,0.002,117630.0,117610.0,0.80419758]
[1752403785461,0.002,117630.0,117620.0,0.25688]
[1752403785667,0.00994157,117630.0,117620.0,0.25688]
[1752403786651,0.01094157,117630.0,117620.0,0.25692956]
[1752403792531,0.01094406,117630.0,117620.0,0.25692956]
[1752403794287,0.003,117630.0,117620.0,0.25692956]
[1752403794513,0.01094626,117630.0,117620.0,0.25692956]
[1752403799488,0.02734626,117630.0,117620.0,0.25692956]
[1752403800083,0.02734567,117630.0,117620.0,0.25692956]
[1752403800460,0.04665567,117630.0,117620.0,0.25692956]
[1752403802071,0.04665577,117630.0,117620.0,0.25692956]
[1752403802727,0.04878575,117630.0,117620.0,0.25692956]
[1752403804907,0.04878601,117630.0,117620.0,0.25692956]
[1752403805666,0.04878601,117630.0,117620.0,0.46060956]
[1752403807821,0.04878675,117630.0,117620.0,0.46060956]
[1752403810629,0.04878793,117630.0,117620.0,0.46060956]
[1752403813558,0.04878997,117630.0,117620.0,0.46060956]
[1752403819299,0.04878874,117630.0,117620.0,0.46060956]
[1752403819700,0.04878863,117630.0,117620.0,0.46060956]
[1752403827856,0.04084,117630.0,117620.0,0.46060956]
[1752403828058,0.04878624,117630.0,117620.0,0.46060956]
[1752403836708,0.04878561,117630.0,117620.0,0.46060956]
[1752403842045,0.04788561,117630.0,117620.0,0.54368]
[1752403842261,0.01608561,117630.0,117600.0,0.20939152]
[1752403842467,0.01613518,117630.0,117600.0,0.28378718]
[1752403842642,0.00301,117620.0,117600.0,0.28378718]
[1752403842875,0.04275561,117620.0,117600.0,0.08542993]
[1752403843302,0.04275561,117620.0,117610.0,0.25724]
[1752403844178,0.04275561,117620.0,117610.0,0.59724]
[1752403844928,0.03481,117620.0,117610.0,0.59724]
[1752403845137,0.04275712,117620.0,117610.0,0.80092]
[1752403847330,0.04275712,117620.0,117610.0,0.50505998]
[1752403847533,0.04275712,117620.0,117610.0,0.50605998]
[1752403848319,0.04275712,117620.0,117610.0,0.20468]
[1752403848515,0.04275712,117620.0,117610.0,0.46184]
[1752403850474,0.03481,117620.0,117610.0,0.80184]
[1752403850683,0.04275825,117620.0,117610.0,0.20368]
[1752403852801,0.0572991,117620.0,117610.0,0.20368]
[1752403853838,0.0572991,117620.0,117610.0,0.80072]
[1752403854048,0.04935085,117620.0,117610.0,0.80072]
[1752403854258,0.05730064,117620.0,117610.0,0.5160943]
[1752403854444,0.05730064,117620.0,117610.0,0.20368]
[1752403854650,0.05139085,117620.0,117610.0,0.20368]
[1752403854858,0.05934065,117620.0,117610.0,0.20368]
[1752403856118,0.05934065,117620.0,117610.0,0.3322]
[1752403856332,0.05934065,117620.0,117610.0,0.6722]
[1752403857227,0.05934065,117620.0,117610.0,0.53816284]
[1752403858752,0.05934065,117620.0,117610.0,0.51885276]
[1752403858968,0.05934065,117620.0,117610.0,0.64733276]
[1752403860565,0.05934065,117620.0,117610.0,0.20368]
[1752403861926,0.05934031,117620.0,117610.0,0.20368]
[1752403862102,0.04334031,117620.0,117610.0,0.33216]
[1752403862307,0.04274031,117620.0,117610.0,0.20368]
[1752403862511,0.04274001,117620.0,117610.0,0.20368]
[1752403862740,0.05924001,117620.0,117610.0,0.20368]
[1752403864168,0.05924001,117620.0,117610.0,0.3322]
[1752403866485,0.04624085,117610.0,117590.0,0.33995426]
[1752403866701,0.05419001,117610.0,117600.0,0.20368]
[1752403868334,0.05419001,117610.0,117600.0,0.3322]
[1752403868894,0.05419001,117610.0,117600.0,0.6742]
[1752403869096,0.05419001,117610.0,117600.0,0.6752]
[1752403869502,0.05733001,117610.0,117600.0,0.6752]
[1752403870488,0.04938085,117610.0,117600.0,0.6752]
[1752403870711,0.05732765,117610.0,117600.0,0.6752]
[1752403872089,0.05732765,117610.0,117600.0,0.54116265]
[1752403872299,0.05732765,117610.0,117600.0,0.49150644]
[1752403872510,0.05732765,117610.0,117600.0,0.48047173]
[1752403873943,0.05732765,117610.0,117600.0,0.60899173]
[1752403874742,0.05732765,117610.0,117600.0,0.58968096]
[1752403878462,0.05732765,117610.0,117600.0,0.3332]
[1752403879093,0.04938085,117610.0,117600.0,0.3332]
[1752403879309,0.05732756,117610.0,117600.0,0.3332]
[1752403879607,0.05732761,117610.0,117600.0,0.3332]
[1752403880311,0.05732761,117610.0,117600.0,0.6732]
[1752403880517,0.05732766,117610.0,117600.0,0.6732]
[1752403882306,0.05732766,117610.0,117600.0,0.52261034]
[1752403883006,0.05732766,117610.0,117600.0,0.20368]
[1752403883386,0.05732766,117610.0,117600.0,0.33268]
[1752403884255,0.05732766,117610.0,117600.0,0.20368]
[1752403884860,0.05732766,117610.0,117600.0,0.54368]
[1752403885714,0.05732766,117610.0,117600.0,0.67264]
[1752403886418,0.04938085,117610.0,117600.0,0.67264]
[1752403890951,0.04938085,117610.0,117600.0,0.33264]
[1752403892107,0.05732906,117610.0,117580.0,0.40048945]
[1752403892299,0.05732906,117610.0,117580.0,0.46109068]
[1752403892300,0.0164,117600.0,117580.0,0.46109068]
[1752403892473,0.02434821,117600.0,117580.0,0.4483758]
[1752403893048,0.03984821,117600.0,117580.0,0.4483758]
[1752403893334,0.03984821,117600.0,117590.0,0.46948]
[1752403894940,0.03984821,117600.0,117590.0,0.47148]
[1752403895106,0.03984821,117600.0,117590.0,0.67516]
[1752403895665,0.03984821,117600.0,117590.0,0.67616]
[1752403895666,0.02966211,117600.0,117590.0,0.67616]
[1752403896174,0.02966211,117600.0,117590.0,0.67816]
[1752403898199,0.02966211,117600.0,117590.0,0.20868]
[1752403898409,0.02966211,117600.0,117590.0,0.20368]
[1752403899422,0.0217139,117600.0,117590.0,0.33316]
[1752403899624,0.02965997,117600.0,117590.0,0.33316]
[1752403900072,0.02965995,117600.0,117590.0,0.20368]
[1752403901653,0.02965995,117600.0,117590.0,0.33316]
[1752403902218,0.02965995,117600.0,117590.0,0.20368]
[1752403903618,0.02965995,117600.0,117590.0,0.54368]
[1752403903819,0.02965995,117600.0,117590.0,0.67312]
[1752403904216,0.02965995,117600.0,117580.0,0.07357163]
[1752403905327,0.02965729,117600.0,117590.0,0.20368]
[1752403906195,0.02965729,117600.0,117590.0,0.33308]
[1752403907073,0.02965729,117600.0,117590.0,0.20368]
[1752403907707,0.04419814,117600.0,117590.0,0.20468]
[1752403908027,0.03625475,117600.0,117590.0,0.20468]
[1752403908241,0.04419787,117600.0,117590.0,0.20368]
[1752403909272,0.04419787,117600.0,117590.0,0.33304]
[1752403910248,0.04419787,117600.0,117580.0,0.39074192]
[1752403910474,0.04419787,117600.0,117590.0,0.20368]
[1752403912203,0.04419787,117600.0,117580.0,0.03342997]
[1752403912469,0.04419787,117600.0,117580.0,0.43050753]
[1752403912884,0.04419787,117600.0,117580.0,0.42850753]
[1752403913094,0.04419787,117600.0,117590.0,0.001]
[1752403913511,0.04419787,117600.0,117580.0,0.08850753]
[1752403913781,0.04419787,117600.0,117580.0,0.09050753]
[1752403914000,0.04419787,117600.0,117580.0,0.09250753]
[1752403914675,0.04419787,117600.0,117590.0,0.46928]
[1752403915329,0.04419787,117600.0,117590.0,0.67396]
[1752403916048,0.04419787,117600.0,117590.0,0.67496]
[1752403916249,0.04419787,117600.0,117590.0,0.20568]
[1752403916839,0.04419774,117600.0,117590.0,0.20568]
[1752403918515,0.04419774,117600.0,117590.0,0.33496]
[1752403922126,0.04419774,117600.0,117590.0,0.20368]
[1752403922523,0.04419774,117600.0,117580.0,0.37424818]
[1752403923992,0.04419774,117600.0,117590.0,0.12924]
[1752403924185,0.04419774,117600.0,117580.0,0.3589364]
[1752403924556,0.04420002,117600.0,117580.0,0.3589364]
[1752403925160,0.04420002,117600.0,117580.0,0.3569364]
[1752403925341,0.04420002,117600.0,117590.0,0.20468]
[1752403925777,0.04420002,117600.0,117590.0,0.20368]
[1752403926148,0.04420002,117600.0,117590.0,0.33288]
[1752403928351,0.04420002,117600.0,117590.0,0.20368]
[1752403930305,0.04420002,117600.0,117590.0,0.33284]
[1752403930745,0.04724002,117600.0,117590.0,0.33284]
[1752403932210,0.04724002,117600.0,117570.0,0.00907984]
[1752403932416,0.04102612,117600.0,117570.0,0.34]
[1752403932626,0.018,117590.0,117570.0,0.34]
[1752403932888,0.00994527,117590.0,117570.0,0.3502]
[1752403933036,0.00994732,117590.0,117570.0,0.3502]
[1752403933236,0.00994733,117590.0,117570.0,0.3502]
[1752403933480,0.02584733,117590.0,117570.0,0.3502]
[1752403933683,0.0258473,117590.0,117570.0,0.3502]
[1752403933883,0.0258473,117590.0,117570.0,0.3506955]
[1752403934219,0.0258473,117590.0,117580.0,0.46912]
[1752403934437,0.0258473,117590.0,117580.0,0.3289647]
[1752403935278,0.0258473,117590.0,117580.0,0.5326447]
[1752403935503,0.0258473,117590.0,117580.0,0.5336447]
[1752403936540,0.0258473,117590.0,117580.0,0.6627247]
[1752403937136,0.0258473,117590.0,117580.0,0.65720705]
[1752403938411,0.0258473,117590.0,117580.0,0.65920705]
[1752403940277,0.0258473,117590.0,117580.0,0.63989527]
[1752403940494,0.0258473,117590.0,117580.0,0.62885997]
[1752403940916,0.0418473,117590.0,117580.0,0.62885997]
[1752403941855,0.04184736,117590.0,117580.0,0.62885997]
[1752403942424,0.04184736,117590.0,117580.0,0.6205835]
[1752403942640,0.04184736,117590.0,117580.0,0.57920111]
[1752403942814,0.03166093,117590.0,117580.0,0.57920111]
[1752403944784,0.0316611,117590.0,117580.0,0.57920111]
[1752403946316,0.0316611,117590.0,117580.0,0.56816581]
[1752403948203,0.0316611,117590.0,117580.0,0.54885403]
[1752403948411,0.0316611,117590.0,117580.0,0.33576]
[1752403950236,0.0316611,117590.0,117580.0,0.67576]
[1752403950451,0.03166123,117590.0,117580.0,0.67576]
[1752403952298,0.03166123,117590.0,117580.0,0.53288587]
[1752403952506,0.03166123,117590.0,117580.0,0.20368]
[1752403953419,0.03166123,117590.0,117580.0,0.3326]
[1752403954536,0.03166123,117590.0,117580.0,0.6726]
[1752403956307,0.03473123,117590.0,117580.0,0.52436819]
[1752403957598,0.03473123,117590.0,117580.0,0.33256]
[1752403958491,0.03473123,117590.0,117580.0,0.20368]
[1752403959061,0.02678357,117590.0,117580.0,0.20368]
[1752403959260,0.0347314,117590.0,117580.0,0.20368]
[1752403959723,0.0347314,117590.0,117580.0,0.33252]
[1752403959928,0.03473142,117590.0,117580.0,0.33252]
[1752403961295,0.03473142,117590.0,117580.0,0.67252]
[1752403962296,0.03473142,117590.0,117580.0,0.53540351]
[1752403962498,0.03473142,117590.0,117580.0,0.52160937]
[1752403963680,0.03473142,117590.0,117580.0,0.65040937]
[1752403964659,0.02678357,117590.0,117580.0,0.65040937]
[1752403968169,0.03473128,117590.0,117580.0,0.33248]
[1752403971137,0.02678357,117590.0,117580.0,0.33248]
[1752403971343,0.03473106,117590.0,117580.0,0.33248]
[1752403971728,0.03455904,117590.0,117580.0,0.67248]
[1752403972272,0.03455904,117590.0,117580.0,0.3317235]
[1752403972452,0.03455904,117590.0,117580.0,0.52160933]
[1752403973130,0.03455904,117590.0,117580.0,0.20368]
[1752403973610,0.03455904,117590.0,117580.0,0.33236]
[1752403973982,0.02661157,117590.0,117580.0,0.33236]
[1752403974164,0.034559,117590.0,117580.0,0.20368]
[1752403975779,0.034559,117590.0,117580.0,0.33236]
[1752403976159,0.034559,117590.0,117580.0,0.20368]
[1752403977768,0.034559,117590.0,117580.0,0.33232]
[1752403978207,0.034559,117590.0,117580.0,0.20368]
[1752403979844,0.02661157,117590.0,117580.0,0.20368]
[1752403980045,0.03455897,117590.0,117580.0,0.33228]
[1752403980155,0.03455897,117590.0,117580.0,0.20368]
[1752403980354,0.03455896,117590.0,117580.0,0.20368]
[1752403981548,0.03662896,117590.0,117580.0,0.20368]
[1752403981979,0.03662896,117590.0,117580.0,0.33228]
[1752403982351,0.03662896,117590.0,117570.0,0.33172349]
[1752403982566,0.0317,117580.0,117570.0,0.3179293]
[1752403982788,0.03964739,117580.0,117570.0,0.3179293]
[1752403983205,0.03964739,117580.0,117570.0,0.31241163]
[1752403984058,0.03964739,117580.0,117570.0,0.34846012]
[1752403984481,0.03964739,117580.0,117570.0,0.48102012]
[1752403984731,0.0317,117580.0,117570.0,0.48102012]
[1752403984950,0.0317,117580.0,117570.0,0.47902012]
[1752403985386,0.0317,117580.0,117570.0,0.79062012]
[1752403989969,0.03964726,117580.0,117570.0,0.76027291]
[1752403990748,0.03964726,117580.0,117570.0,0.47820849]
[1752403992359,0.03964726,117580.0,117570.0,0.46993198]
[1752403992796,0.03964732,117580.0,117570.0,0.4561378]
[1752403995506,0.03964738,117580.0,117570.0,0.4561378]
[1752403995946,0.03964738,117580.0,117570.0,0.44510245]
[1752403997282,0.03964738,117580.0,117570.0,0.44216]
[1752403997924,0.03964738,117580.0,117570.0,0.3096]
[1752403998145,0.03964738,117580.0,117570.0,0.20368]
[1752403998371,0.0396474,117580.0,117570.0,0.20368]
[1752403999113,0.0396474,117580.0,117570.0,0.33216]
[1752404001050,0.0317,117580.0,117570.0,0.67216]
[1752404001490,0.03964731,117580.0,117570.0,0.67216]
[1752404001927,0.03964728,117580.0,117570.0,0.46848]
[1752404002164,0.03964728,117580.0,117570.0,0.32896465]
[1752404002383,0.03964728,117580.0,117570.0,0.32068814]
[1752404002773,0.03964728,117580.0,117560.0,0.16632033]
[1752404002981,0.03964728,117580.0,117560.0,0.16636985]
[1752404003191,0.03964728,117580.0,117570.0,0.1284]
[1752404004804,0.03964728,117580.0,117570.0,0.4684]
[1752404005169,0.03964728,117580.0,117570.0,0.778]
[1752404005818,0.03964728,117580.0,117570.0,0.63028814]
[1752404006456,0.04281728,117580.0,117570.0,0.63028814]
[1752404007123,0.04281714,117580.0,117570.0,0.63128814]
[1752404007343,0.04281714,117580.0,117570.0,0.75968814]
[1752404007961,0.04281714,117580.0,117570.0,0.74865279]
[1752404009966,0.04281718,117580.0,117570.0,0.74865279]
[1752404011656,0.03964718,117580.0,117570.0,0.74865279]
[1752404012337,0.04481718,117580.0,117570.0,0.74037628]
[1752404012526,0.04481718,117580.0,117570.0,0.63445628]
[1752404012753,0.04481718,117580.0,117570.0,0.6206621]
[1752404013164,0.04481718,117580.0,117570.0,0.33308]
[1752404013956,0.02941718,117580.0,117570.0,0.20368]
[1752404014169,0.04511718,117580.0,117570.0,0.20368]
[1752404015136,0.04511718,117580.0,117570.0,0.33204]
[1752404018620,0.03717,117580.0,117570.0,0.33204]
[1752404018829,0.04511709,117580.0,117570.0,0.67204]
[1752404019154,0.0451171,117580.0,117570.0,0.67204]
[1752404020102,0.0451171,117580.0,117570.0,0.20368]
[1752404021291,0.0451171,117580.0,117570.0,0.33204]
[1752404021954,0.0451171,117580.0,117570.0,0.54368]
[1752404022368,0.0451171,117580.0,117570.0,0.53540349]
[1752404022771,0.0451171,117580.0,117570.0,0.52160931]
[1752404023371,0.0451171,117580.0,117570.0,0.33208]
[1752404025933,0.0451171,117580.0,117570.0,0.20368]
[1752404027268,0.04511723,117580.0,117570.0,0.20368]
[1752404027715,0.04511723,117580.0,117570.0,0.33204]
[1752404028207,0.04511723,117580.0,117570.0,0.20368]
[1752404029875,0.04511723,117580.0,117570.0,0.33204]
[1752404030080,0.04511723,117580.0,117570.0,0.20368]
[1752404031951,0.04511723,117580.0,117570.0,0.33204]
[1752404032177,0.04511723,117580.0,117570.0,0.54368]
[1752404032403,0.04511723,117580.0,117560.0,0.06401693]
[1752404032830,0.04311723,117580.0,117560.0,0.05022276]
[1752404033543,0.04311723,117580.0,117560.0,0.00022287]
[1752404033767,0.04311723,117580.0,117560.0,0.05022276]
[1752404033991,0.04311723,117580.0,117570.0,0.12836]
[1752404034209,0.04523723,117580.0,117570.0,0.12836]
[1752404035243,0.04523723,117580.0,117570.0,0.33204]
[1752404036085,0.04523716,117580.0,117570.0,0.33304]
[1752404036600,0.04523716,117580.0,117570.0,0.67304]
[1752404038087,0.04523716,117580.0,117570.0,0.20368]
[1752404039864,0.04523716,117580.0,117570.0,0.33204]
[1752404040275,0.04311716,117580.0,117570.0,0.33204]
[1752404041241,0.04311713,117580.0,117570.0,0.33204]
[1752404042441,0.04311713,117580.0,117570.0,0.20368]
[1752404043188,0.04311713,117580.0,117560.0,0.33448234]
[1752404043699,0.03517,117580.0,117560.0,0.35984539]
[1752404043906,0.04311712,117580.0,117560.0,0.35984539]
[1752404044106,0.04311712,117580.0,117560.0,0.34881006]
[1752404044287,0.04311712,117580.0,117570.0,0.12832]